fUST/lending_fUST_20241014
["ID","MTS","AMOUNT","RATE_DAILY","PERIOD"]
[340240872,1728898241769,-151.0,0.00025739,3]
[340240873,1728898241778,-151.0,0.00025739,7]
[340240874,1728898241787,-151.0,0.00025739,7]
[340240875,1728898241797,-151.0,0.00025739,7]
[340240876,1728898241807,-154.162139,0.00025739,7]
[340240877,1728898241816,-245.331185,0.00025739,7]
[340240878,1728898241826,-151.0,0.00025739,7]
[340240879,1728898241836,-151.0,0.00025749,7]
[340240880,1728898241846,-500.0,0.0002575,2]
[340240881,1728898241856,-500.0,0.0002575,2]
[340240882,1728898241865,-151.0,0.00025753,7]
[340240883,1728898241875,-151.0,0.00025753,7]
[340240884,1728898241884,-500.0,0.00025808,2]
[340240885,1728898241894,-584.26,0.00025808,2]
[340240886,1728898241903,-500.0,0.00025808,2]
[340240887,1728898241913,-500.0,0.00025808,2]
[340240888,1728898241923,-151.0,0.00025808,7]
[340240889,1728898241932,-500.0,0.00025809,2]
[340240890,1728898241942,-500.0,0.00025809,2]
[340240891,1728898241951,-500.0,0.00025809,2]
[340240892,1728898241961,-500.0,0.00025809,2]
[340240893,1728898241970,-500.0,0.00025809,2]
[340240894,1728898241980,-500.0,0.00025809,2]
[340240895,1728898241989,-500.0,0.00025809,2]
[340240896,1728898241998,-151.0,0.00025809,7]
[340240897,1728898242008,-500.0,0.00025809,2]
[340240898,1728898242017,-240.811136,0.00025809,7]
[340240899,1728898242026,-240.811136,0.00025809,7]
[340240900,1728898242036,-151.0,0.00025809,7]
[340240901,1728898242046,-273.474558,0.00025809,7]
[340240902,1728898242055,-151.0,0.00025809,7]
[340240903,1728898242064,-254.264818,0.00025809,7]
[340240904,1728898242074,-151.0,0.00025809,7]
[340240905,1728898242084,-726.75,0.00025809,2]
[340240906,1728898242093,-500.0,0.00025809,2]
[340240907,1728898242102,-2223.56,0.00025809,2]
[340240908,1728898242112,-151.0,0.00025809,7]
[340240909,1728898242121,-151.0,0.00025809,7]
[340240910,1728898242130,-151.0,0.00025809,7]
[340240911,1728898242139,-651.55,0.00025809,2]
[340240912,1728898242148,-500.0,0.0002581,2]
[340240913,1728898242159,-500.0,0.0002581,2]
[340240914,1728898242168,-500.0,0.0002581,2]
[340240915,1728898242177,-500.0,0.0002581,2]
[340240916,1728898242187,-500.0,0.0002581,2]
[340240917,1728898242196,-1000.0,0.0002581,2]
[340240918,1728898242206,-500.0,0.0002581,2]
[340240919,1728898242216,-500.0,0.0002581,2]
[340240920,1728898242225,-151.0,0.00025958,7]
[340240921,1728898242234,-151.0,0.00025958,7]
[340240922,1728898242244,-151.0,0.00025958,7]
[340240923,1728898242253,-151.0,0.00025967,7]
[340240924,1728898242263,-151.0,0.00025967,7]
[340240925,1728898242396,-151.0,0.00025967,3]
[340240926,1728898242406,-274.049264,0.00025967,7]
[340240927,1728898242416,-500.0,0.00025973,2]
[340240928,1728898242426,-151.0,0.00025987,7]
[340240929,1728898242435,-68454.99846347,0.00025994,4]
[340240942,1728898242934,-1270.11,0.00025435,10]
[340240943,1728898242944,-3361.04086927,0.00025994,4]
[340240950,1728898245909,-254.34095377,0.0002499,2]
[340240951,1728898245921,-2565.72471861,0.00025994,4]
[340240952,1728898245968,-52149.82993696,0.00025994,4]
[340240964,1728898691678,158.551404,0.00023836,2]
[340240966,1728899277286,158.551404,0.00023836,2]
[340241005,1728899432002,-300.0,0.00024986,2]
[340241006,1728899432012,-300.0,0.00024986,2]
[340241007,1728899432022,-500.0,0.00024987,2]
[340241008,1728899432032,-500.0,0.00024987,2]
[340241009,1728899432041,-500.0,0.00024987,2]
[340241010,1728899432051,-500.0,0.00024987,2]
[340241011,1728899432060,-1000.0,0.00024987,2]
[340241012,1728899432070,-500.0,0.00024987,2]
[340241013,1728899432079,-500.0,0.00024987,2]
[340241014,1728899432088,-500.0,0.00024987,2]
[340241015,1728899432098,-150.0,0.00025,2]
[340241016,1728899432107,-500.0,0.00025261,2]
[340241017,1728899432116,-500.0,0.00025261,2]
[340241018,1728899432125,-500.0,0.00025261,2]
[340241019,1728899432135,-500.0,0.00025261,2]
[340241020,1728899432144,-300.0,0.00025261,2]
[340241021,1728899432153,-500.0,0.00025261,2]
[340241022,1728899432162,-573.58856398,0.00025261,2]
[340241023,1728899432173,-500.0,0.00025261,2]
[340241024,1728899432182,-500.0,0.00025533,2]
[340241025,1728899432191,-500.0,0.00025533,2]
[340241026,1728899432201,-500.0,0.00025533,2]
[340241027,1728899432210,-500.0,0.00025533,2]
[340241028,1728899432219,-281.86,0.00025533,2]
[340241029,1728899432229,-307.58629692,0.00025533,2]
[340241030,1728899432238,-500.0,0.00025533,2]
[340241031,1728899432247,-500.0,0.00025533,2]
[340241032,1728899432257,-500.0,0.00025533,2]
[340241033,1728899432267,-500.0,0.00025533,2]
[340241034,1728899432277,-150.5438859,0.00025533,2]
[340241035,1728899432286,-605.63,0.00025533,2]
[340241036,1728899432295,-500.0,0.00025533,2]
[340241037,1728899432304,-500.0,0.00025533,2]
[340241038,1728899432313,-472.2351332,0.00025533,2]
[340241039,1728899432325,-771.54,0.00025533,2]
[340241040,1728899432336,-609.1948668,0.00025533,2]
[340241041,1728899432345,-500.0,0.00025533,2]
[340241042,1728899432354,-542.96,0.00025533,2]
[340241043,1728899432363,-69.78824852,0.00025533,2]
[340241047,1728899438355,-430.21175148,0.00025533,2]
[340241048,1728899438365,-500.0,0.00025535,2]
[340241049,1728899438374,-500.0,0.00025535,2]
[340241050,1728899438383,-500.0,0.00025535,2]
[340241051,1728899438392,-500.0,0.00025535,2]
[340241052,1728899438402,-189.20482811,0.00025535,2]
[340241053,1728899438411,-500.0,0.00025535,2]
[340241054,1728899438421,-216.304,0.00025536,10]
[340241055,1728899438430,-500.0,0.00025807,2]
[340241056,1728899438441,-500.0,0.00025807,2]
[340241057,1728899438451,-500.0,0.00025807,2]
[340241058,1728899438461,-500.0,0.00025807,2]
[340241059,1728899438471,-500.0,0.00025807,2]
[340241060,1728899438480,-552.44,0.00025807,2]
[340241061,1728899438490,-500.0,0.00025807,2]
[340241062,1728899438500,-500.0,0.00025807,2]
[340241063,1728899438510,-605.63,0.00025807,2]
[340241064,1728899438519,-500.0,0.00025807,2]
[340241065,1728899438528,-500.0,0.00025807,2]
[340241066,1728899438537,-1852.97,0.00025807,2]
[340241067,1728899438546,-500.0,0.00025807,2]
[340241068,1728899438555,-542.96,0.00025807,2]
[340241069,1728899438564,-500.0,0.00025807,2]
[340241070,1728899438574,-162.38985564,0.00025807,2]
[340241071,1728899438583,-127.83469702,0.00025809,2]
[340241092,1728899440232,-372.16530298,0.00025809,2]
[340241093,1728899440242,-156.12094107,0.00025809,2]
[340241094,1728899440255,-343.87905893,0.00025809,2]
[340241095,1728899440265,-244.92734107,0.00025809,2]
[340241185,1728899771387,158.551404,0.00023836,2]
[340241187,1728899938384,162.10481876,0.00023064,2]
[340241202,1728900318365,158.551404,0.00023836,2]
[340241203,1728900413054,1111.0,0.0002305,2]
[340241204,1728900428012,159.06043598,0.00023762,2]
[340241222,1728900632239,-166.662818,0.00024753,2]
[340241223,1728900632249,-250.0000114,0.0002537,2]
[340241224,1728900632258,-500.0,0.00025533,2]
[340241225,1728900632267,-500.0,0.00025533,2]
[340241226,1728900632277,-616.0,0.000256,2]
[340241227,1728900632287,-238.5951634,0.00025807,2]
[340241228,1728900632297,-500.0,0.00025807,2]
[340241229,1728900632307,-211.95079481,0.00025972,2]
[340241230,1728900632316,-500.0,0.00026081,2]
[340241231,1728900632326,-150.0,0.000261,2]
[340241232,1728900632335,-300.0,0.00026351,2]
[340241233,1728900632344,-300.0,0.00026351,2]
[340241234,1728900632354,-500.0,0.00026352,2]
[340241235,1728900632364,-500.0,0.00026352,2]
[340241236,1728900632374,-500.0,0.00026352,2]
[340241237,1728900632383,-623.98593827,0.00026352,2]
[340241238,1728900632393,-500.0,0.00026352,2]
[340241239,1728900632403,-555.16,0.00026352,2]
[340241240,1728900632414,-500.0,0.00026353,2]
[340241241,1728900632423,-500.0,0.00026353,2]
[340241242,1728900632433,-500.0,0.00026353,2]
[340241243,1728900632442,-500.0,0.00026354,2]
[340241244,1728900632452,-500.0,0.00026354,2]
[340241245,1728900632461,-500.0,0.00026354,2]
[340241246,1728900632470,-500.0,0.00026354,2]
[340241247,1728900632480,-500.0,0.00026354,2]
[340241248,1728900632490,-500.0,0.00026355,2]
[340241249,1728900632500,-1044.27,0.000264,2]
[340241250,1728900632509,-500.0,0.00026497,14]
[340241251,1728900632518,-573.92528154,0.00026497,14]
[340241252,1728900632528,-1698.55,0.00026527,2]
[340241253,1728900632537,-500.0,0.00026527,2]
[340241254,1728900632546,-500.0,0.00026527,2]
[340241255,1728900632556,-173.043,0.00026528,13]
[340241256,1728900632565,-500.0,0.00026626,2]
[340241257,1728900632575,-500.0,0.00026626,2]
[340241258,1728900632585,-500.0,0.00026626,2]
[340241259,1728900632595,-500.0,0.00026626,2]
[340241260,1728900632605,-555.16,0.00026626,2]
[340241261,1728900632614,-500.0,0.00026627,2]
[340241262,1728900632624,-500.0,0.00026627,2]
[340241263,1728900632634,-500.0,0.00026627,2]
[340241264,1728900632643,-500.0,0.00026628,2]
[340241265,1728900632653,-500.0,0.00026628,2]
[340241266,1728900632664,-500.0,0.00026628,2]
[340241267,1728900632673,-607.02005321,0.00026628,2]
[340241268,1728900632683,-500.0,0.00026628,2]
[340241269,1728900632693,-500.0,0.00026629,2]
[340241270,1728900632702,-1698.55,0.00026801,2]
[340241271,1728900632711,-500.0,0.00026801,2]
[340241272,1728900632720,-500.0,0.00026801,2]
[340241273,1728900632729,-163.52325271,0.00026899,2]
[340241274,1728900632741,-5407.62495333,0.00026899,5]
[340241275,1728900632762,-15438.67333333,0.00026899,5]
[340241349,1728900863906,158.551404,0.00023836,2]
[340241362,1728901465988,158.551404,0.00023836,2]
[340241419,1728901832403,-854.22163142,0.000263,2]
[340241521,1728901843635,-85.62836858,0.000263,2]
[340241522,1728901843647,-176.62566234,0.00026898,2]
[340241523,1728901843656,-72.21203428,0.000271,2]
[340241526,1728901843673,-881.16822026,0.000271,2]
[340241529,1728901843683,-300.0,0.00027172,2]
[340241530,1728901843693,-500.0,0.00027173,2]
[340241532,1728901843703,-500.0,0.00027173,2]
[340241534,1728901843713,-500.0,0.00027173,2]
[340241536,1728901843723,-500.0,0.00027173,2]
[340241538,1728901843733,-500.0,0.00027173,2]
[340241539,1728901843743,-500.0,0.00027173,2]
[340241541,1728901843763,-500.0,0.00027173,2]
[340241542,1728901843773,-500.0,0.00027173,2]
[340241543,1728901843784,-508.9,0.00027173,2]
[340241544,1728901843794,-604.0,0.00027173,2]
[340241545,1728901843804,-500.0,0.00027173,2]
[340241546,1728901843814,-3095.25830989,0.00027191,4]
[340241630,1728902028780,158.551404,0.00023836,2]
[340241991,1728902538769,158.551404,0.00023836,2]
[340242256,1728903038956,-845.86,0.000264,2]
[340242257,1728903038966,-150.01,0.00027172,2]
[340242258,1728903038975,-834.20772274,0.00027199,2]
[340242259,1728903038985,-300.0,0.00027199,2]
[340242260,1728903038995,-300.0,0.00027199,2]
[340242261,1728903039005,-500.0,0.000272,2]
[340242262,1728903039015,-507.71093577,0.000272,2]
[340242263,1728903039027,-488.14,0.000272,2]
[340242264,1728903039038,-500.0,0.00027298,2]
[340242265,1728903039048,-4866.862458,0.00027298,5]
[340242266,1728903039060,-16390.47414219,0.00027299,5]
[340242267,1728903039071,-163.52325271,0.00027299,2]
[340242268,1728903039083,-173.043,0.00027299,16]
[340242269,1728903039093,-500.0,0.00027299,2]
[340242270,1728903039103,-500.0,0.00027299,2]
[340242271,1728903039114,-500.0,0.00027299,2]
[340242272,1728903039124,-500.0,0.00027299,2]
[340242273,1728903039135,-500.0,0.00027299,2]
[340242274,1728903039146,-500.0,0.00027299,2]
[340242275,1728903039157,-500.0,0.00027299,2]
[340242276,1728903039168,-253.453434,0.00027299,7]
[340242277,1728903039180,-500.0,0.00027299,2]
[340242278,1728903039191,-500.0,0.00027299,2]
[340242279,1728903039201,-151.0,0.00027299,7]
[340242280,1728903039211,-1557.01,0.00027299,2]
[340242281,1728903039221,-500.0,0.00027299,2]
[340242282,1728903039234,-500.0,0.00027299,2]
[340242283,1728903039244,-183.278394,0.00027299,7]
[340242284,1728903039254,-627.90109418,0.00027299,2]
[340242285,1728903039264,-183.278394,0.00027299,7]
[340242286,1728903039275,-3761.59961704,0.000273,2]
[340242287,1728903039286,-151.0,0.000273,7]
[340242288,1728903039296,-335.199036,0.000273,7]
[340242289,1728903039305,-335.199036,0.000273,7]
[340242290,1728903039315,-235.939025,0.000273,7]
[340242291,1728903039323,-235.939025,0.000273,7]
[340242292,1728903039334,-235.939025,0.000273,7]
[340242293,1728903039343,-235.939025,0.000273,7]
[340242294,1728903039352,-151.0,0.000273,7]
[340242295,1728903039362,-151.0,0.000273,7]
[340242296,1728903039371,-244.072832,0.000273,7]
[340242297,1728903039381,-151.0,0.000273,7]
[340242298,1728903039390,-151.0,0.000273,7]
[340242299,1728903039399,-151.0,0.000273,7]
[340242300,1728903039409,-151.0,0.000273,3]
[340242301,1728903039421,-151.0,0.000273,7]
[340242302,1728903039431,-151.0,0.000273,7]
[340242303,1728903039443,-151.0,0.000273,7]
[340242304,1728903039455,-151.0,0.000273,7]
[340242305,1728903039465,-151.0,0.000273,7]
[340242306,1728903039475,-151.0,0.000273,7]
[340242307,1728903039486,-151.0,0.000273,7]
[340242308,1728903039497,-151.0,0.000273,7]
[340242309,1728903039505,-151.0,0.000273,7]
[340242310,1728903039515,-151.0,0.000273,7]
[340242311,1728903039524,-151.0,0.000273,7]
[340242312,1728903039533,-151.0,0.000273,7]
[340242313,1728903039543,-151.0,0.000273,7]
[340242314,1728903039552,-151.0,0.000273,7]
[340242315,1728903039561,-334.415506,0.000273,7]
[340242316,1728903039572,-334.415506,0.000273,7]
[340242317,1728903039582,-334.415506,0.000273,7]
[340242318,1728903039593,-334.415506,0.000273,7]
[340242319,1728903039603,-334.415506,0.000273,7]
[340242320,1728903039612,-334.415506,0.000273,7]
[340242321,1728903039622,-151.0,0.000273,7]
[340242322,1728903039633,-151.0,0.000273,7]
[340242323,1728903039645,-151.0,0.000273,7]
[340242324,1728903039657,-151.0,0.000273,7]
[340242325,1728903039667,-183.278394,0.000273,7]
[340242326,1728903039679,-183.278394,0.000273,7]
[340242327,1728903039690,-183.278394,0.000273,7]
[340242328,1728903039700,-183.278394,0.000273,7]
[340242329,1728903039711,-151.0,0.00027346,7]
[340242330,1728903039722,-151.0,0.00027346,7]
[340242331,1728903039733,-151.0,0.00027346,7]
[340242332,1728903039743,-151.0,0.00027347,7]
[340242333,1728903039756,-151.0,0.00027347,7]
[340242334,1728903039766,-151.0,0.00027347,7]
[340242335,1728903039776,-151.0,0.00027347,7]
[340242336,1728903039785,-335.199036,0.00027347,7]
[340242337,1728903039795,-335.199036,0.00027347,7]
[340242338,1728903039808,-151.0,0.00027347,7]
[340242339,1728903039818,-151.0,0.00027347,7]
[340242340,1728903039828,-151.0,0.00027347,3]
[340242341,1728903039838,-151.0,0.00027347,7]
[340242342,1728903039849,-298.724708,0.00027347,7]
[340242343,1728903039859,-183.278394,0.00027347,7]
[340242344,1728903039869,-500.0,0.00027397,2]
[340242345,1728903039880,-151.0,0.00027397,7]
[340242346,1728903039890,-151.0,0.00027397,7]
[340242347,1728903039899,-334.415506,0.00027397,7]
[340242348,1728903039908,-334.415506,0.00027397,7]
[340242349,1728903039918,-151.0,0.00027397,7]
[340242350,1728903039927,-151.0,0.00027397,7]
[340242351,1728903039937,-151.0,0.00027397,2]
[340242352,1728903039947,-151.0,0.00027397,2]
[340242353,1728903039956,-151.0,0.00027397,2]
[340242354,1728903039966,-151.0,0.00027397,2]
[340242355,1728903039976,-151.0,0.00027397,2]
[340242356,1728903039986,-151.0,0.00027397,2]
[340242357,1728903039997,-151.0,0.00027397,2]
[340242358,1728903040007,-288.085714,0.00027397,2]
[340242359,1728903040016,-151.0,0.00027447,7]
[340242360,1728903040027,-151.0,0.00027447,7]
[340242361,1728903040037,-151.0,0.00027447,7]
[340242362,1728903040046,-335.199036,0.00027447,7]
[340242363,1728903040056,-335.199036,0.00027447,7]
[340242364,1728903040066,-235.939025,0.00027447,7]
[340242365,1728903040076,-235.939025,0.00027447,7]
[340242367,1728903040086,-151.0,0.00027447,7]
[340242368,1728903040096,-151.0,0.00027447,7]
[340242370,1728903040105,-151.0,0.00027447,3]
[340242371,1728903040115,-289.158582,0.00027447,7]
[340242372,1728903040125,-151.0,0.00027447,7]
[340242374,1728903040135,-183.278394,0.00027447,7]
[340242375,1728903040145,-151.0,0.00027473,7]
[340242376,1728903040155,-151.0,0.00027473,7]
[340242377,1728903040165,-261.63068,0.00027473,7]
[340242378,1728903040175,-500.0,0.00027473,2]
[340242380,1728903040184,-335.199036,0.00027473,7]
[340242384,1728903040313,-335.199036,0.00027473,7]
[340242385,1728903040323,-235.939025,0.00027473,7]
[340242386,1728903040332,-235.939025,0.00027473,7]
[340242387,1728903040342,-151.0,0.00027473,7]
[340242388,1728903040351,-151.0,0.00027473,7]
[340242389,1728903040361,-151.0,0.00027473,7]
[340242390,1728903040371,-151.0,0.00027473,3]
[340242391,1728903040380,-151.0,0.00027473,7]
[340242392,1728903040390,-151.0,0.00027473,7]
[340242393,1728903040400,-151.0,0.00027473,2]
[340242394,1728903040410,-151.0,0.00027473,2]
[340242395,1728903040419,-151.0,0.00027473,7]
[340242396,1728903040429,-151.0,0.00027473,7]
[340242397,1728903040439,-151.0,0.00027473,7]
[340242398,1728903040448,-151.0,0.00027473,7]
[340242399,1728903040458,-334.415506,0.00027473,7]
[340242400,1728903040468,-334.415506,0.00027473,7]
[340242401,1728903040477,-334.415506,0.00027473,7]
[340242402,1728903040486,-334.415506,0.00027473,7]
[340242403,1728903040497,-151.0,0.00027473,7]
[340242404,1728903040507,-213.109367,0.00027473,7]
[340242405,1728903040516,-183.278394,0.00027473,7]
[340242406,1728903040526,-152.137,0.00027513,2]
[340242407,1728903040536,-526.0,0.00027513,2]
[340242408,1728903040546,-1694.0,0.00027513,2]
[340242409,1728903040556,-1157.0,0.00027513,2]
[340242410,1728903040566,-300.55,0.00027513,2]
[340242411,1728903040575,-151.0,0.00027513,7]
[340242412,1728903040585,-151.0,0.00027513,7]
[340242413,1728903040595,-335.199036,0.00027513,7]
[340242414,1728903040606,-335.199036,0.00027513,7]
[340242415,1728903040615,-335.199036,0.00027513,7]
[340242416,1728903040624,-335.199036,0.00027513,7]
[340242417,1728903040633,-151.0,0.00027513,7]
[340242418,1728903040644,-151.0,0.00027513,7]
[340242419,1728903040654,-286.042099,0.00027513,3]
[340242421,1728903040664,-151.0,0.00027513,7]
[340242424,1728903040676,-151.0,0.00027513,2]
[340242425,1728903040686,-151.0,0.00027513,7]
[340242427,1728903040695,-151.0,0.00027513,7]
[340242428,1728903040705,-334.415506,0.00027513,7]
[340242429,1728903040715,-334.415506,0.00027513,7]
[340242430,1728903040724,-151.0,0.00027513,7]
[340242431,1728903040734,-183.278394,0.00027513,7]
[340242432,1728903040746,-500.0,0.00027572,2]
[340242433,1728903040756,-500.0,0.00027573,2]
[340242434,1728903040767,-500.0,0.00027573,2]
[340242435,1728903040776,-500.0,0.00027573,2]
[340242436,1728903040786,-151.0,0.00027573,7]
[340242437,1728903040796,-500.0,0.00027573,2]
[340242438,1728903040809,-500.0,0.00027573,2]
[340242439,1728903040819,-500.0,0.00027573,2]
[340242440,1728903040830,-500.0,0.00027573,2]
[340242441,1728903040841,-151.0,0.00027573,2]
[340242442,1728903040854,-500.0,0.00027573,2]
[340242443,1728903040865,-151.0,0.00027573,2]
[340242444,1728903040875,-500.0,0.00027573,2]
[340242445,1728903040887,-151.0,0.00027573,7]
[340242446,1728903040897,-151.0,0.00027573,7]
[340242447,1728903040908,-151.0,0.00027573,7]
[340242448,1728903040918,-299.20242,0.00027573,7]
[340242449,1728903040929,-1557.01,0.00027573,2]
[340242450,1728903040939,-334.415506,0.00027573,7]
[340242451,1728903040951,-334.415506,0.00027573,7]
[340242452,1728903040962,-500.0,0.00027573,2]
[340242453,1728903040972,-151.0,0.00027573,7]
[340242454,1728903040982,-151.0,0.00027573,7]
[340242455,1728903040993,-256.8,0.00027573,2]
[340242456,1728903041004,-183.278394,0.00027573,7]
[340242457,1728903041014,-183.278394,0.00027573,7]
[340242458,1728903041025,-335.199036,0.00027701,7]
[340242459,1728903041035,-335.199036,0.00027701,7]
[340242460,1728903041047,-151.0,0.00027701,7]
[340242461,1728903041059,-275.26533,0.00027701,7]
[340242462,1728903041070,-151.0,0.00027721,7]
[340242463,1728903041081,-235.939025,0.00027721,7]
[340242464,1728903041091,-235.939025,0.00027721,7]
[340242465,1728903041103,-151.0,0.00027747,7]
[340242466,1728903041115,-151.0,0.00027747,7]
[340242467,1728903041126,-500.0,0.00027747,2]
[340242468,1728903041136,-335.199036,0.00027747,7]
[340242469,1728903041146,-335.199036,0.00027747,7]
[340242470,1728903041157,-235.939025,0.00027747,7]
[340242471,1728903041169,-235.939025,0.00027747,7]
[340242472,1728903041179,-151.0,0.00027747,7]
[340242473,1728903041189,-151.0,0.00027747,7]
[340242474,1728903041199,-151.0,0.00027747,2]
[340242475,1728903041208,-151.0,0.00027747,7]
[340242476,1728903041218,-334.415506,0.00027747,7]
[340242477,1728903041228,-334.415506,0.00027747,7]
[340242478,1728903041237,-334.415506,0.00027747,7]
[340242479,1728903041247,-334.415505,0.00027747,7]
[340242480,1728903041257,-151.0,0.00027747,7]
[340242481,1728903041266,-183.278394,0.00027747,7]
[340242482,1728903041278,-500.0,0.00027846,2]
[340242483,1728903041288,-500.0,0.00027847,2]
[340242484,1728903041299,-500.0,0.00027847,2]
[340242485,1728903041309,-500.0,0.00027847,2]
[340242486,1728903041319,-500.0,0.00027847,2]
[340242487,1728903041328,-500.0,0.00027847,2]
[340242488,1728903041337,-500.0,0.00027847,2]
[340242489,1728903041346,-500.0,0.00027847,2]
[340242490,1728903041356,-500.0,0.00027847,2]
[340242491,1728903041365,-500.0,0.00027847,2]
[340242492,1728903041375,-1557.01,0.00027847,2]
[340242493,1728903041385,-500.0,0.00027847,2]
[340242494,1728903041394,-151.0,0.00027847,7]
[340242495,1728903041403,-335.199036,0.00027885,7]
[340242496,1728903041413,-335.199036,0.00027885,7]
[340242497,1728903041422,-279.209052,0.00027885,7]
[340242498,1728903041432,-1058.43,0.00027955,10]
[340242499,1728903041441,-882.02,0.00027955,10]
[340242500,1728903041451,-735.02,0.00027955,10]
[340242501,1728903041460,-612.51,0.00027955,10]
[340242502,1728903041469,-151.0,0.00027965,7]
[340242503,1728903041479,-151.0,0.00027965,7]
[340242504,1728903041489,-335.199036,0.00027965,7]
[340242505,1728903041499,-335.19904505,0.00027965,7]
[340242506,1728903041508,-235.939025,0.00027965,7]
[340242507,1728903041518,-235.939025,0.00027965,7]
[340242508,1728903041527,-151.0,0.00027975,7]
[340242509,1728903041536,-235.939025,0.00027975,7]
[340242510,1728903041545,-235.939025,0.00027975,7]
[340242511,1728903041555,-151.0,0.00027975,7]
[340242512,1728903041565,-288.7,0.00028,5]
[340242513,1728903041574,-151.0,0.00028021,7]
[340242514,1728903041586,-500.0,0.00028021,2]
[340242515,1728903041595,-235.939025,0.00028021,7]
[340242516,1728903041604,-235.939025,0.00028021,7]
[340242517,1728903041613,-211.76143761,0.00028086,5]
[340242518,1728903041623,-500.0,0.00028086,5]
[340242519,1728903041632,-500.0,0.0002812,2]
[340242520,1728903041641,-500.0,0.00028121,2]
[340242521,1728903041654,-500.0,0.00028121,2]
[340242522,1728903041665,-500.0,0.00028121,2]
[340242523,1728903041678,-500.0,0.00028121,2]
[340242524,1728903041690,-500.0,0.00028121,2]
[340242525,1728903041701,-500.0,0.00028121,2]
[340242526,1728903041715,-500.0,0.00028121,2]
[340242527,1728903041726,-500.0,0.00028121,2]
[340242528,1728903041736,-500.0,0.00028121,2]
[340242529,1728903041748,-1557.01,0.00028121,2]
[340242530,1728903041758,-500.0,0.00028121,2]
[340242531,1728903041770,-269.47553955,0.00028159,2]
[340242532,1728903041781,-151.0,0.00028269,7]
[340242533,1728903041792,-235.939025,0.00028269,7]
[340242534,1728903041802,-235.939019,0.00028269,7]
[340242535,1728903041817,-500.0,0.00028295,2]
[340242536,1728903041828,-500.0,0.00028394,2]
[340242537,1728903041838,-500.0,0.00028395,2]
[340242538,1728903041850,-500.0,0.00028395,2]
[340242539,1728903041862,-500.0,0.00028395,2]
[340242540,1728903041873,-500.0,0.00028395,2]
[340242541,1728903041884,-500.0,0.00028395,2]
[340242542,1728903041895,-500.0,0.00028395,2]
[340242543,1728903041907,-500.0,0.00028395,2]
[340242544,1728903041919,-500.0,0.00028395,2]
[340242545,1728903041930,-500.0,0.00028395,2]
[340242546,1728903041942,-1557.01,0.00028395,2]
[340242547,1728903041953,-500.0,0.00028395,2]
[340242548,1728903041964,-301.713,0.00028411,2]
[340242549,1728903041975,-504.21197571,0.00028569,2]
[340242550,1728903041986,-500.0,0.00028668,2]
[340242551,1728903041997,-500.0,0.00028669,2]
[340242552,1728903042008,-500.0,0.00028669,2]